fUST/lending_fUST_20241203
["ID","MTS","AMOUNT","RATE_DAILY","PERIOD"]
[343968438,1733161842890,-1138.37,0.0003041,7]
[343968439,1733161842899,-1351.32,0.0003041,7]
[343968440,1733161842909,-500.0,0.0003041,7]
[343968441,1733161842919,-3232.37,0.0003041,7]
[343968442,1733161842929,-151.0,0.00030461,7]
[343968443,1733161842938,-156.165391,0.00030461,7]
[343968444,1733161842947,-157.033705,0.00030461,7]
[343968445,1733161842957,-157.033705,0.00030461,7]
[343968446,1733161842966,-157.033705,0.00030461,7]
[343968447,1733161842976,-157.033705,0.00030461,7]
[343968448,1733161842985,-157.033705,0.00030461,7]
[343968449,1733161842995,-157.033705,0.00030461,7]
[343968450,1733161843004,-157.033705,0.00030461,7]
[343968451,1733161843013,-157.033705,0.00030461,7]
[343968452,1733161843023,-157.033705,0.00030461,7]
[343968453,1733161843032,-157.033705,0.00030461,7]
[343968454,1733161843042,-157.033705,0.00030461,7]
[343968455,1733161843052,-157.033705,0.00030461,7]
[343968456,1733161843061,-157.033705,0.00030461,7]
[343968457,1733161843072,-157.033705,0.00030461,7]
[343968458,1733161843084,-157.033705,0.00030461,7]
[343968459,1733161843094,-157.033705,0.00030461,7]
[343968460,1733161843103,-157.033705,0.00030461,7]
[343968461,1733161843112,-157.033705,0.00030461,7]
[343968462,1733161843122,-157.033705,0.00030461,7]
[343968463,1733161843132,-157.033703,0.00030461,7]
[343968464,1733161843140,-371.099312,0.00030461,7]
[343968465,1733161843149,-371.099312,0.00030461,7]
[343968466,1733161843159,-371.099312,0.00030461,7]
[343968467,1733161843169,-371.099312,0.00030461,7]
[343968468,1733161843181,-371.099312,0.00030461,7]
[343968469,1733161843190,-371.099312,0.00030461,7]
[343968470,1733161843199,-371.099312,0.00030461,7]
[343968471,1733161843209,-371.099312,0.00030461,7]
[343968473,1733161843219,-371.099312,0.00030461,7]
[343968474,1733161843227,-371.099312,0.00030461,7]
[343968475,1733161843237,-371.099312,0.00030461,7]
[343968476,1733161843246,-371.099312,0.00030461,7]
[343968477,1733161843256,-371.099312,0.00030461,7]
[343968478,1733161843265,-371.099312,0.00030461,7]
[343968479,1733161843274,-371.099312,0.00030461,7]
[343968480,1733161843283,-371.099312,0.00030461,7]
[343968481,1733161843292,-371.099312,0.00030461,7]
[343968482,1733161843301,-371.099312,0.00030461,7]
[343968483,1733161843311,-371.099312,0.00030461,7]
[343968484,1733161843320,-371.099322,0.00030461,7]
[343968485,1733161843329,-151.0,0.00030461,7]
[343968486,1733161843339,-151.0,0.00030461,7]
[343968487,1733161843348,-151.0,0.00030461,7]
[343968488,1733161843357,-151.0,0.00030461,7]
[343968489,1733161843366,-218.842112,0.00030461,7]
[343968490,1733161843375,-152.707552,0.00030461,7]
[343968491,1733161843386,-151.0,0.00030461,7]
[343968492,1733161843395,-151.0,0.00030461,7]
[343968493,1733161843403,-151.0,0.00030461,7]
[343968494,1733161843412,-151.0,0.00030461,7]
[343968495,1733161843421,-151.0,0.00030461,7]
[343968496,1733161843432,-151.0,0.00030461,7]
[343968497,1733161843443,-151.0,0.00030461,7]
[343968498,1733161843452,-151.0,0.00030461,7]
[343968499,1733161843462,-151.0,0.00030461,7]
[343968500,1733161843472,-151.0,0.00030461,7]
[343968501,1733161843482,-233.54716,0.00030461,7]
[343968502,1733161843492,-164.157464,0.00030461,7]
[343968503,1733161843501,-178.477896,0.00030461,7]
[343968504,1733161843511,-271.055748,0.00030461,7]
[343968505,1733161843521,-271.055748,0.00030461,7]
[343968506,1733161843531,-271.055748,0.00030461,7]
[343968507,1733161843541,-271.055748,0.00030461,7]
[343968508,1733161843551,-271.055748,0.00030461,7]
[343968509,1733161843560,-271.055748,0.00030461,7]
[343968510,1733161843570,-271.055748,0.00030461,7]
[343968511,1733161843580,-271.055748,0.00030461,7]
[343968512,1733161843590,-271.055748,0.00030461,7]
[343968513,1733161843600,-271.055748,0.00030461,7]
[343968514,1733161843610,-271.055748,0.00030461,7]
[343968515,1733161843620,-271.055748,0.00030461,7]
[343968516,1733161843630,-271.055748,0.00030461,7]
[343968517,1733161843639,-271.055748,0.00030461,7]
[343968518,1733161843649,-271.055748,0.00030461,7]
[343968519,1733161843659,-271.055748,0.00030461,7]
[343968520,1733161843668,-271.055748,0.00030461,7]
[343968521,1733161843679,-271.055748,0.00030461,7]
[343968522,1733161843689,-271.055748,0.00030461,7]
[343968523,1733161843699,-271.055746,0.00030461,7]
[343968524,1733161843709,-222.73805917,0.00030462,2]
[343968525,1733161843719,-69762.16828561,0.00030462,2]
[343968526,1733161843728,-155.97828289,0.00030463,7]
[343968527,1733161843737,-5855191.08702296,0.00030463,10]
[343968528,1733161843964,-8782.98480934,0.00030463,10]
[343968529,1733161843977,-6053.8889739,0.00030463,10]
[343968530,1733161843988,-477.43584,0.00030463,10]
[343968531,1733161843999,-38091.12322927,0.00030463,10]
[343968536,1733161845946,-1961.14,0.00027387,10]
[343968537,1733161845956,-500.0,0.00027397,7]
[343968538,1733161845967,-301.14,0.00027671,7]
[343968539,1733161845976,-25792.62,0.00030463,10]
[343968540,1733161845987,-9538.5360646,0.00030463,10]
[343968541,1733161845998,-11142.6885435,0.00030463,10]
[343968542,1733161846026,-14017.14488459,0.00030463,10]
[343968543,1733161846037,-4064.49101559,0.00030463,10]
[343968544,1733161846049,-36136.4794093,0.00030463,10]
[343968570,1733161903641,1169.27083333,0.0002031,2]
[343968571,1733161905494,-300.0,0.00027396,2]
[343968572,1733161905519,-500.0,0.00027396,2]
[343968573,1733161905542,-500.0,0.00027396,2]
[343968574,1733161905565,-500.0,0.00027396,2]
[343968575,1733161905588,-500.0,0.00027396,2]
[343968576,1733161905610,-192.59090878,0.00027396,2]
[343968577,1733161905631,-500.0,0.00027396,2]
[343968578,1733161905653,-500.0,0.00027396,2]
[343968579,1733161905765,-500.0,0.00027396,2]
[343968580,1733161905792,-222.64349329,0.00027396,2]
[343968581,1733161905819,-241.22914224,0.00027396,2]
[343968582,1733161905840,-500.0,0.00027396,2]
[343968583,1733161905862,-500.0,0.00027396,2]
[343968584,1733161905883,-173.27785677,0.00027396,2]
[343968585,1733161905906,-500.0,0.00027396,2]
[343968586,1733161905928,-500.0,0.00027396,2]
[343968587,1733161905950,-339.15828289,0.00027396,2]
[343968588,1733161905975,-500.0,0.00027396,2]
[343968589,1733161905997,-514.10962232,0.00027396,2]
[343968590,1733161906021,-500.0,0.00027396,2]
[343968591,1733161906044,-500.0,0.00027396,2]
[343968592,1733161906066,-500.0,0.00027396,2]
[343968593,1733161906089,-500.0,0.00027396,2]
[343968594,1733161906113,-500.0,0.00027396,2]
[343968595,1733161906139,-500.0,0.00027396,2]
[343968596,1733161906164,-500.0,0.00027396,2]
[343968597,1733161906191,-500.0,0.00027396,2]
[343968598,1733161906221,-500.0,0.00027396,2]
[343968599,1733161906248,-1736.71986038,0.00027396,2]
[343968891,1733162262544,191.558485,0.00013973,2]
[343969265,1733162599833,1169.27083333,0.0002,2]
[343969463,1733162736130,-500.0,0.00020124,2]
[343969464,1733162736154,-500.0,0.00020124,2]
[343969465,1733162736180,-1169.27083333,0.00020124,2]
[343969466,1733162736207,-170.124776,0.00025053,2]
[343969467,1733162736232,-300.0,0.00025063,2]
[343969468,1733162736256,-300.0,0.00025063,2]
[343969469,1733162736278,-14504.0,0.00025063,2]
[343969470,1733162736300,-168.9487968,0.00025066,2]
[343969471,1733162736324,-24900.0,0.00025066,2]
[343969472,1733162736348,-667.00878014,0.00025392,2]
[343969473,1733162736371,-250.0,0.00025492,2]
[343969474,1733162736399,-280.03694,0.00025917,2]
[343969475,1733162736423,-667.00878013,0.00026102,2]
[343969476,1733162736450,-171.736,0.00026464,13]
[343969477,1733162736477,-667.00878013,0.00026812,2]
[343969479,1733162736503,-500.0,0.00027397,7]
[343969480,1733162736527,-500.0,0.00027397,7]
[343969481,1733162736548,-500.0,0.00027397,7]
[343969482,1733162736569,-168.0,0.00027397,7]
[343969483,1733162736589,-500.0,0.00027397,7]
[343969484,1733162736612,-500.0,0.00027397,7]
[343969485,1733162736636,-500.0,0.00027397,7]
[343969486,1733162736661,-500.0,0.00027397,7]
[343969487,1733162736685,-500.0,0.00027397,7]
[343969488,1733162736707,-500.0,0.00027397,7]
[343969489,1733162736730,-500.0,0.00027397,7]
[343969490,1733162736753,-524.40545518,0.00027397,7]
[343969491,1733162736776,-500.0,0.00027397,7]
[343969492,1733162736798,-500.0,0.00027397,7]
[343969493,1733162736820,-500.0,0.00027397,7]
[343969494,1733162736843,-500.0,0.00027397,7]
[343969495,1733162736864,-500.0,0.00027397,7]
[343969496,1733162736887,-500.0,0.00027397,7]
[343969497,1733162736909,-500.0,0.00027397,7]
[343969498,1733162736932,-500.0,0.00027397,7]
[343969499,1733162736955,-500.0,0.00027397,7]
[343969500,1733162736977,-500.0,0.00027397,7]
[343969501,1733162736999,-500.0,0.00027397,7]
[343969502,1733162737022,-500.0,0.00027397,7]
[343969503,1733162737172,-500.0,0.00027397,7]
[343969504,1733162737196,-500.0,0.00027397,7]
[343969505,1733162737217,-500.0,0.00027397,7]
[343969506,1733162737238,-500.0,0.00027397,7]
[343969507,1733162737259,-738.93,0.00027397,7]
[343969508,1733162737280,-500.0,0.00027397,7]
[343969509,1733162737301,-500.0,0.00027397,7]
[343969510,1733162737322,-500.0,0.00027397,7]
[343969511,1733162737342,-500.0,0.00027397,7]
[343969512,1733162737362,-500.0,0.00027397,7]
[343969513,1733162737387,-500.0,0.00027397,7]
[343969514,1733162737407,-500.0,0.00027397,7]
[343969515,1733162737427,-568.11967224,0.00027397,7]
[343969516,1733162737451,-500.0,0.00027397,7]
[343969517,1733162737474,-500.0,0.00027397,7]
[343969518,1733162737494,-500.0,0.00027397,7]
[343969519,1733162737515,-380.0,0.00027397,7]
[343969520,1733162737536,-500.0,0.00027397,7]
[343969521,1733162737560,-500.0,0.00027397,7]
[343969522,1733162737581,-500.0,0.00027397,7]
[343969523,1733162737602,-305.24132208,0.00027397,7]
[343969524,1733162737623,-500.0,0.00027397,7]
[343969526,1733162737643,-453.41905154,0.00027397,7]
[343969527,1733162737663,-500.0,0.00027397,7]
[343969528,1733162737686,-500.0,0.00027397,7]
[343969529,1733162737707,-500.0,0.00027397,7]
[343969530,1733162737728,-500.0,0.00027397,7]
[343969531,1733162737748,-500.0,0.00027397,7]
[343969532,1733162737770,-500.0,0.00027397,7]
[343969533,1733162737793,-500.0,0.00027397,7]
[343969534,1733162737816,-500.0,0.00027397,7]
[343969535,1733162737838,-500.0,0.00027397,7]
[343969536,1733162737861,-1169.27083333,0.00027397,7]
[343969537,1733162737886,-1169.27083333,0.00027397,7]
[343969538,1733162737908,-500.0,0.00027397,7]
[343969539,1733162737930,-500.0,0.00027397,7]
[343969540,1733162737959,-500.0,0.00027397,7]
[343969541,1733162737982,-500.0,0.00027397,7]
[343969542,1733162738004,-500.0,0.00027397,7]
[343969543,1733162738025,-500.0,0.00027397,7]
[343969544,1733162738047,-500.0,0.00027397,7]
[343969545,1733162738068,-500.0,0.00027397,7]
[343969546,1733162738091,-2427.99,0.00027397,7]
[343969547,1733162738112,-500.0,0.00027397,7]
[343969548,1733162738134,-500.0,0.00027397,7]
[343969549,1733162738156,-500.0,0.00027397,7]
[343969550,1733162738177,-500.0,0.00027397,7]
[343969551,1733162738199,-500.0,0.00027397,7]
[343969552,1733162738218,-444.82775113,0.00027397,7]
[343969553,1733162738241,-1318.44,0.00027397,7]
[343969554,1733162738262,-500.0,0.00027397,7]
[343969555,1733162738283,-500.0,0.00027397,7]
[343969556,1733162738304,-667.00878013,0.00027522,2]
[343969557,1733162738324,-420.0,0.00027569,2]
[343969558,1733162738346,-1906.45,0.00027659,10]
[343969559,1733162738370,-1588.71,0.00027659,10]
[343969560,1733162738394,-1323.93,0.00027659,10]
[343969561,1733162738416,-500.0,0.00027669,2]
[343969562,1733162738441,-500.0,0.00027669,2]
[343969563,1733162738462,-500.0,0.00027669,2]
[343969564,1733162738482,-500.0,0.00027669,2]
[343969565,1733162738504,-500.0,0.00027669,2]
[343969566,1733162738525,-500.0,0.00027669,2]
[343969567,1733162738548,-500.0,0.00027669,2]
[343969568,1733162738571,-500.0,0.00027669,2]
[343969569,1733162738592,-411.36916086,0.00027669,2]
[343969570,1733162738613,-469.18261036,0.00027669,2]
[343969571,1733162738635,-500.0,0.00027669,2]
[343969572,1733162738657,-500.0,0.00027669,2]
[343969573,1733162738681,-500.0,0.00027669,2]
[343969574,1733162738706,-500.0,0.00027669,2]
[343969575,1733162738730,-500.0,0.00027669,2]
[343969576,1733162738752,-500.0,0.00027669,2]
[343969577,1733162738774,-500.0,0.00027669,2]
[343969578,1733162738796,-500.0,0.00027669,2]
[343969579,1733162738820,-500.0,0.00027669,2]
[343969580,1733162738843,-500.0,0.00027669,2]
[343969582,1733162738864,-500.0,0.00027669,2]
[343969583,1733162738887,-500.0,0.00027669,2]
[343969584,1733162738910,-500.0,0.00027669,2]
[343969585,1733162738932,-500.0,0.00027669,2]
[343969586,1733162738959,-353.95400774,0.00027669,2]
[343969587,1733162738982,-500.0,0.00027669,2]
[343969588,1733162739005,-500.0,0.00027669,2]
[343969590,1733162739027,-500.0,0.00027669,2]
[343969591,1733162739051,-500.0,0.00027669,2]
[343969592,1733162739072,-500.0,0.00027669,2]
[343969593,1733162739094,-500.0,0.00027669,2]
[343969594,1733162739117,-382.33682209,0.00027669,2]
[343969595,1733162739141,-500.0,0.00027669,2]
[343969596,1733162739162,-355.5204599,0.00027669,2]
[343969597,1733162739186,-500.0,0.00027669,2]
[343969599,1733162739210,-500.0,0.00027669,2]
[343969600,1733162739232,-500.0,0.00027669,2]
[343969602,1733162739255,-500.0,0.00027669,2]
[343969603,1733162739278,-500.0,0.00027669,2]
[343969604,1733162739300,-500.0,0.00027669,2]
[343969606,1733162739323,-500.0,0.00027669,2]
[343969607,1733162739346,-500.0,0.00027669,2]
[343969608,1733162739367,-294.75121856,0.00027671,7]
[343969609,1733162739390,-500.0,0.00027671,7]
[343969610,1733162739412,-491.18,0.00027671,7]
[343969611,1733162739434,-500.0,0.00027671,7]
[343969612,1733162739460,-500.0,0.00027671,7]
[343969613,1733162739482,-594.4,0.00027671,7]
[343969614,1733162739504,-240.02,0.00027671,7]
[343969615,1733162739525,-738.93,0.00027671,7]
[343969616,1733162739548,-500.0,0.00027671,7]
[343969617,1733162739569,-500.0,0.00027671,7]
[343969618,1733162739590,-500.0,0.00027671,7]
[343969619,1733162739612,-500.0,0.00027671,7]
[343969620,1733162739634,-500.0,0.00027671,7]
[343969621,1733162739654,-154.0,0.00027671,7]
[343969622,1733162739675,-1169.27083333,0.00027671,7]
[343969623,1733162739699,-500.0,0.00027671,7]
[343969624,1733162739723,-500.0,0.00027671,7]
[343969625,1733162739747,-2427.99,0.00027671,7]
[343969626,1733162739770,-500.0,0.00027671,7]
[343969627,1733162739792,-253.8,0.00027671,7]
[343969628,1733162739814,-500.0,0.00027671,7]
[343969630,1733162739837,-1318.44,0.00027671,7]
[343969631,1733162739859,-500.0,0.00027945,7]
[343969632,1733162739980,-333.33,0.00027945,7]
[343969633,1733162740005,-738.93,0.00027945,7]
[343969634,1733162740027,-500.0,0.00027945,7]
[343969635,1733162740050,-500.0,0.00027945,7]
[343969636,1733162740072,-379.86103445,0.00027945,7]
[343969637,1733162740094,-500.0,0.00027945,7]
[343969638,1733162740117,-2427.99,0.00027945,7]
[343969639,1733162740139,-500.0,0.00027945,7]
[343969641,1733162740162,-1318.44,0.00027945,7]
[343969642,1733162740183,-500.0,0.00028219,7]
[343969643,1733162740207,-738.93,0.00028219,7]
[343969644,1733162740229,-468.13,0.00028219,7]
[343969645,1733162740250,-500.0,0.00028219,7]
[343969646,1733162740273,-148.44128322,0.00028219,7]
[343969652,1733162744097,-2279.54871678,0.00028219,7]
[343969653,1733162744118,-500.0,0.00028219,7]
[343969654,1733162744140,-1318.44,0.00028219,7]
[343969655,1733162744161,-667.00878013,0.00028231,2]
[343969656,1733162744180,-401.30771038,0.00028393,2]
[343969657,1733162744202,-440.30652782,0.00028492,7]
[343969658,1733162744223,-500.0,0.00028493,7]
[343969659,1733162744245,-738.93,0.00028493,7]
[343969660,1733162744266,-240.92,0.00028493,7]
[343969661,1733162744288,-2427.99,0.00028493,7]
[343969662,1733162744309,-500.0,0.00028493,7]
[343969663,1733162744331,-1318.44,0.00028493,7]
[343969664,1733162744355,-153.61,0.000286,31]
[343969665,1733162744379,-153.61,0.000286,31]
[343969666,1733162744401,-738.93,0.00028767,7]
[343969667,1733162744423,-2427.99,0.00028767,7]
[343969668,1733162744445,-500.0,0.00028767,7]
[343969669,1733162744467,-1318.44,0.00028767,7]
[343969670,1733162744487,-186.874715,0.00028776,2]
[343969671,1733162744506,-184.427948,0.00028776,2]
[343969672,1733162744526,-401.30771035,0.00028885,2]
[343969673,1733162744547,-667.00878013,0.00028941,2]
[343969674,1733162744568,-738.93,0.00029041,7]
[343969675,1733162744591,-2427.99,0.00029041,7]
[343969676,1733162744611,-500.0,0.00029041,7]
[343969677,1733162744633,-1318.44,0.00029041,7]
[343969678,1733162744658,-153.61,0.000291,31]
[343969679,1733162744684,-153.61,0.000291,31]
[343969680,1733162744710,-153.61,0.000291,31]
[343969681,1733162744735,-153.61,0.000291,31]
[343969682,1733162744756,-640.0,0.00029158,15]
[343969683,1733162744777,-582.81877375,0.00029212,5]
[343969684,1733162744798,-738.93,0.00029315,7]
[343969685,1733162744820,-2427.99,0.00029315,7]
[343969686,1733162744841,-500.0,0.00029315,7]
[343969687,1733162744864,-1318.44,0.00029315,7]
[343969688,1733162744884,-401.30771035,0.00029377,2]
[343969689,1733162744910,-153.61,0.000295,31]
[343969690,1733162744935,-153.61,0.000295,31]
[343969691,1733162744960,-153.61,0.000295,31]
[343969692,1733162744985,-153.61,0.000295,31]
[343969693,1733162745006,-306.0,0.00029507,30]
[343969694,1733162745027,-738.93,0.00029589,7]
[343969695,1733162745049,-2427.99,0.00029589,7]
[343969696,1733162745070,-500.0,0.00029589,7]
[343969697,1733162745092,-1318.44,0.00029589,7]
[343969698,1733162745111,-666.0,0.00029635,2]
[343969699,1733162745131,-6666.0,0.00029635,2]
[343969700,1733162745151,-356.0518868,0.00029644,30]
[343969701,1733162745171,-667.00878013,0.00029651,2]
[343969702,1733162745191,-738.93,0.00029863,7]
[343969703,1733162745215,-2427.99,0.00029863,7]
[343969704,1733162745236,-500.0,0.00029863,7]
[343969705,1733162745259,-1318.44,0.00029863,7]
[343969706,1733162745280,-401.30771035,0.00029869,2]
[343969707,1733162745301,-10471.61251642,0.000299,2]
[343969708,1733162745325,-153.61,0.000299,31]
[343969709,1733162745350,-153.61,0.000299,31]
[343969710,1733162745376,-153.61,0.000299,31]
[343969711,1733162745400,-153.61,0.000299,31]
[343969712,1733162745420,-2978.567,0.00029959,2]
[343969713,1733162745440,-188.5095,0.0003,2]
[343969714,1733162745465,-222.0,0.0003,2]
[343969715,1733162745485,-738.93,0.00030136,7]
[343969716,1733162745507,-2427.99,0.00030136,7]
[343969717,1733162745529,-500.0,0.00030136,7]
[343969719,1733162745551,-1318.44,0.00030136,7]
[343969720,1733162745572,-197.042322,0.00030137,120]
[343969721,1733162745592,-151.0,0.00030178,7]
[343969722,1733162745611,-608.1680067,0.00030178,2]
[343969723,1733162745632,-176.49818926,0.00030178,2]
[343969725,1733162745651,-202.86194378,0.00030178,2]
[343969726,1733162745672,-1000.0,0.00030225,2]
[343969727,1733162745692,-1000.0,0.0003025,2]
[343969728,1733162745715,-980.83052185,0.00030263,3]
[343969729,1733162745734,-1000.0,0.0003027,2]
[343969730,1733162745754,-10471.61251643,0.00030293,2]
[343969731,1733162745775,-1000.0,0.00030316,2]
[343969732,1733162745795,-1000.0,0.00030318,2]
[343969733,1733162745815,-587.0,0.00030326,2]
[343969734,1733162745836,-525.90904524,0.00030343,2]
[343969735,1733162745856,-2703.46111,0.00030361,2]
[343969736,1733162745876,-401.30771035,0.00030361,2]
[343969737,1733162745898,-667.00878013,0.00030361,2]
[343969738,1733162745918,-150.0,0.00030377,2]
[343969739,1733162745938,-1000.0,0.00030381,2]
[343969740,1733162745965,-1000.0,0.00030386,2]
[343969741,1733162745985,-2000.0,0.000304,3]
[343969742,1733162746004,-1057.7,0.000304,2]
[343969743,1733162746024,-187.0,0.000304,3]
[343969744,1733162746049,-153.61,0.000304,31]
[343969745,1733162746073,-153.61,0.000304,31]
[343969746,1733162746097,-153.61,0.000304,31]
[343969747,1733162746120,-153.61,0.000304,31]
[343969748,1733162746141,-1103.27,0.000304,10]
[343969749,1733162746161,-738.93,0.0003041,7]
[343969750,1733162746262,-2427.99,0.0003041,7]
[343969751,1733162746284,-319.46416831,0.0003041,7]
[343969752,1733162746306,-1318.44,0.0003041,7]
[343969753,1733162746328,-1000.0,0.00030419,2]
[343969754,1733162746350,-1000.0,0.00030422,2]
[343969755,1733162746372,-1000.0,0.00030431,2]
[343969756,1733162746398,-1000.0,0.00030443,2]
[343969757,1733162746419,-222.73805917,0.00030461,2]
[343969759,1733162746443,-41717.11051239,0.00030461,2]
[343969897,1733162833111,-1169.27083333,0.00020109,2]
[343969898,1733162833131,-300.0,0.00027396,2]
[343969899,1733162833152,-300.0,0.00027396,2]
[343969900,1733162833172,-14504.0,0.00027396,2]
[343969901,1733162833191,-500.0,0.00027397,7]
[343969902,1733162833211,-1169.27083333,0.00027397,7]
[343969903,1733162833229,-863.19353934,0.00027397,7]
[343969905,1733162836087,-306.07729399,0.00027397,7]
[343969906,1733162836108,-1169.27083333,0.00027397,7]
[343969907,1733162836129,-500.0,0.00027397,7]
[343969908,1733162836150,-500.0,0.00027397,7]
[343969909,1733162836172,-500.0,0.00027397,7]
[343969910,1733162836193,-500.0,0.00027397,7]
[343969911,1733162836215,-500.0,0.00027397,7]
[343969912,1733162836236,-500.0,0.00027397,7]
[343969913,1733162836256,-500.0,0.00027671,7]
[343969914,1733162836278,-388.390771,0.00027936,2]
[343969915,1733162836299,-186.874715,0.00028776,2]
[343969916,1733162836320,-184.427948,0.00028776,2]
[343969917,1733162836344,-420.0,0.00029606,2]
[343969918,1733162836365,-640.31661,0.00029631,15]
[343969919,1733162836386,-420.0,0.00030136,2]
[343969920,1733162836407,-666.0,0.00030361,2]
[343969921,1733162836431,-412.84193617,0.00030361,2]
[343969922,1733162836453,-951.93,0.000304,2]
[343969923,1733162836481,-919.39,0.00030451,10]
[343969924,1733162836506,-766.16,0.00030451,10]
[343969926,1733162836548,-638.47,0.00030451,10]
[343969927,1733162836577,-532.06,0.00030452,10]
[343969928,1733162836600,-425.71760469,0.0003046,2]
[343969929,1733162836622,-595.05782888,0.0003046,2]
[343969930,1733162836645,-500.0,0.0003046,2]
[343969931,1733162836667,-486.92631357,0.0003046,2]
[343969932,1733162836691,-483.77266753,0.0003046,2]
[343969933,1733162836713,-440.30652782,0.0003046,7]
[343969934,1733162836735,-296.0,0.00030461,2]
[343969935,1733162836757,-28045.05777322,0.00030461,2]
[343969936,1733162836782,-168.9487968,0.00030461,7]
[343969937,1733162836804,-151.0,0.00030461,7]
[343969938,1733162836827,-151.0,0.00030461,7]
[343969939,1733162836847,-151.0,0.00030461,7]
[343969940,1733162836868,-151.0,0.00030461,7]
[343969941,1733162836890,-168.530228,0.00030461,7]
[343969942,1733162836912,-403.422885,0.00030461,7]
[343969943,1733162836935,-403.422885,0.00030461,7]
[343969944,1733162836957,-403.422885,0.00030461,7]
[343969945,1733162836982,-403.422885,0.00030461,7]
[343969946,1733162837010,-403.422885,0.00030461,7]
[343969947,1733162837034,-403.422885,0.00030461,7]
[343969948,1733162837056,-403.422885,0.00030461,7]
[343969949,1733162837079,-403.422885,0.00030461,7]
[343969950,1733162837101,-403.422885,0.00030461,7]
[343969951,1733162837122,-403.422885,0.00030461,7]
[343969952,1733162837144,-403.422885,0.00030461,7]
[343969953,1733162837167,-403.422885,0.00030461,7]
[343969954,1733162837189,-403.422885,0.00030461,7]
[343969955,1733162837211,-403.422885,0.00030461,7]
[343969956,1733162837235,-403.422885,0.00030461,7]
[343969957,1733162837258,-403.422885,0.00030461,7]
[343969958,1733162837282,-403.422885,0.00030461,7]
[343969959,1733162837305,-403.422885,0.00030461,7]
[343969960,1733162837326,-403.422885,0.00030461,7]
[343969961,1733162837347,-403.422877,0.00030461,7]
[343969962,1733162837368,-151.0,0.00030461,7]
[343969963,1733162837389,-151.0,0.00030461,7]
[343969964,1733162837414,-151.0,0.00030461,7]
[343969965,1733162837435,-151.0,0.00030461,7]
[343969966,1733162837457,-218.842112,0.00030461,7]
[343969967,1733162837479,-151.0,0.00030461,7]
[343969968,1733162837502,-151.0,0.00030461,7]
[343969969,1733162837527,-151.0,0.00030461,7]
[343969970,1733162837549,-151.0,0.00030461,7]
[343969971,1733162837570,-151.0,0.00030461,7]
[343969972,1733162837592,-151.0,0.00030461,7]
[343969973,1733162837614,-151.0,0.00030461,7]
[343969974,1733162837635,-151.0,0.00030461,7]
[343969975,1733162837656,-151.0,0.00030461,7]
[343969976,1733162837678,-151.0,0.00030461,7]
[343969977,1733162837701,-151.0,0.00030461,7]
[343969978,1733162837723,-151.0,0.00030461,7]
[343969979,1733162837746,-151.0,0.00030461,7]
[343969980,1733162837774,-151.0,0.00030461,7]
[343969981,1733162837798,-151.0,0.00030461,7]
[343969982,1733162837822,-151.0,0.00030461,7]
[343969983,1733162837845,-151.0,0.00030461,7]
[343969984,1733162837868,-151.0,0.00030461,7]